[Event "Titled Tuesday Blitz March 08 Early 2022"]
[White "Omelja, Artem"]
[Black "Murzin, Volodar"]
[WhiteFideId "14119846"]
[BlackFideId "44155573"]
[WhiteElo "2382"]
[BlackElo "2585"]
[Result "0-1"]
[Round "02"]
[TimeControl "180+1"]
[Date "2022.03.09"]
[WhiteClock "0:00:02"]
[BlackClock "0:01:17"]

1. d4 {[%clk 0:03:00]}  d5 {[%clk 0:02:59]} 2. c4 {[%clk 0:03:00]}  c6 {[%clk 0:02:55]} 3. Nc3 {[%clk 0:03:00]}  Nf6 {[%clk 0:02:55]} 4. Nf3 {[%clk 0:03:00]}  e6 {[%clk 0:02:54]} 5. e3 {[%clk 0:02:59]}  Nbd7 {[%clk 0:02:53]} 6. Qc2 {[%clk 0:02:59]}  b6 {[%clk 0:02:53]} 7. Bd3 {[%clk 0:02:41]}  Bb7 {[%clk 0:02:38]} 8. O-O {[%clk 0:02:36]}  dxc4 {[%clk 0:02:25]} 9. Bxc4 {[%clk 0:02:35]}  c5 {[%clk 0:02:25]} 10. Ne5 {[%clk 0:01:48]}  cxd4 {[%clk 0:02:10]} 11. exd4 {[%clk 0:01:47]}  Bd6 {[%clk 0:02:09]} 12. Bg5 {[%clk 0:01:39]}  O-O {[%clk 0:02:03]} 13. Nxd7 {[%clk 0:00:54]}  Qxd7 {[%clk 0:02:01]} 14. Bxf6 {[%clk 0:00:54]}  gxf6 {[%clk 0:02:02]} 15. d5 {[%clk 0:00:43]}  Bxh2+ {[%clk 0:01:58]} 16. Kxh2 {[%clk 0:00:39]}  Qc7+ {[%clk 0:01:57]} 17. Kg1 {[%clk 0:00:23]}  Qxc4 {[%clk 0:01:56]} 18. dxe6 {[%clk 0:00:24]}  fxe6 {[%clk 0:01:55]} 19. Rad1 {[%clk 0:00:22]}  Rad8 {[%clk 0:01:52]} 20. Rfe1 {[%clk 0:00:20]}  Qg4 {[%clk 0:01:49]} 21. f3 {[%clk 0:00:03]}  Bxf3 {[%clk 0:01:47]} 22. Rxd8 {[%clk 0:00:04]}  Rxd8 {[%clk 0:01:47]} 23. Qf2 {[%clk 0:00:05]}  Bc6 {[%clk 0:01:38]} 24. Re3 {[%clk 0:00:03]}  Kf7 {[%clk 0:01:30]} 25. Rg3 {[%clk 0:00:02]}  Qd4 {[%clk 0:01:30]} 26. Re3 {[%clk 0:00:02]}  Rg8 {[%clk 0:01:26]} 27. Rg3 {[%clk 0:00:01]}  Qxf2+ {[%clk 0:01:22]} 28. Kxf2 {[%clk 0:00:02]}  Rxg3 {[%clk 0:01:22]} 29. Kxg3 {[%clk 0:00:03]}  f5 {[%clk 0:01:23]} 30. Kf2 {[%clk 0:00:03]}  Kf6 {[%clk 0:01:23]} 31. g3 {[%clk 0:00:04]}  e5 {[%clk 0:01:24]} 32. Ke3 {[%clk 0:00:04]}  Kg5 {[%clk 0:01:24]} 33. Kf2 {[%clk 0:00:04]}  h5 {[%clk 0:01:25]} 34. Nd1 {[%clk 0:00:05]}  h4 {[%clk 0:01:24]} 35. gxh4+ {[%clk 0:00:05]}  Kxh4 {[%clk 0:01:25]} 36. Ne3 {[%clk 0:00:05]}  Kg5 {[%clk 0:01:26]} 37. Nc4 {[%clk 0:00:06]}  Kf6 {[%clk 0:01:26]} 38. Nd6 {[%clk 0:00:04]}  b5 {[%clk 0:01:19]} 39. Nc8 {[%clk 0:00:03]}  a6 {[%clk 0:01:18]} 40. b3 {[%clk 0:00:02]}  f4 {[%clk 0:01:17]} 41. Nd6 {[%clk 0:00:02]}  e4 {[%clk 0:01:17]} 42. Nc8 {[%clk 0:00:01]}  Ke5 {[%clk 0:01:17]} 43. Nb6 {[%clk 0:00:02]}  Kd4 {[%clk 0:01:14]} 44. Ke2 {[%clk 0:00:03]}  f3+ {[%clk 0:01:14]} 45. Ke1 {[%clk 0:00:03]}  e3 {[%clk 0:01:15]} 46. Nc8 {[%clk 0:00:04]}  Kd3 {[%clk 0:01:15]} 47. Nd6 {[%clk 0:00:04]}  f2+ {[%clk 0:01:16]} 48. Kf1 {[%clk 0:00:04]}  Kd2 {[%clk 0:01:17]} 49. Ne4+ {[%clk 0:00:02]}  Bxe4 {[%clk 0:01:17]} 0-1


[Site "https://www.chess.com"]

[Event "Titled Tuesday Blitz March 08 Early 2022"]
[White "Pert, Nicholas"]
[Black "Caruana, Fabiano"]
[WhiteFideId "403989"]
[BlackFideId "2020009"]
[WhiteElo "2536"]
[BlackElo "2744"]
[Result "0-1"]
[Round "02"]
[TimeControl "180+1"]
[Date "2022.03.08"]
[WhiteClock "0:00:01"]
[BlackClock "0:00:50"]

1. d4 {[%clk 0:03:00]}  d5 {[%clk 0:02:58]} 2. Nf3 {[%clk 0:03:01]}  Nf6 {[%clk 0:02:57]} 3. c4 {[%clk 0:03:01]}  dxc4 {[%clk 0:02:57]} 4. e3 {[%clk 0:03:01]}  e6 {[%clk 0:02:58]} 5. Bxc4 {[%clk 0:03:01]}  c5 {[%clk 0:02:58]} 6. O-O {[%clk 0:03:00]}  Nc6 {[%clk 0:02:59]} 7. Nc3 {[%clk 0:02:57]}  a6 {[%clk 0:02:57]} 8. dxc5 {[%clk 0:02:54]}  Bxc5 {[%clk 0:02:53]} 9. Qxd8+ {[%clk 0:02:54]}  Kxd8 {[%clk 0:02:54]} 10. Rd1+ {[%clk 0:02:53]}  Ke7 {[%clk 0:02:53]} 11. b3 {[%clk 0:02:54]}  b5 {[%clk 0:02:53]} 12. Be2 {[%clk 0:02:53]}  Bb7 {[%clk 0:02:53]} 13. Bb2 {[%clk 0:02:53]}  Rhd8 {[%clk 0:02:51]} 14. Rac1 {[%clk 0:02:52]}  Rxd1+ {[%clk 0:02:50]} 15. Rxd1 {[%clk 0:02:53]}  Rd8 {[%clk 0:02:49]} 16. Rxd8 {[%clk 0:02:52]}  Kxd8 {[%clk 0:02:49]} 17. Kf1 {[%clk 0:02:53]}  h6 {[%clk 0:02:44]} 18. Ke1 {[%clk 0:02:48]}  Be7 {[%clk 0:02:42]} 19. Nd2 {[%clk 0:02:37]}  Nd7 {[%clk 0:02:36]} 20. a4 {[%clk 0:02:28]}  b4 {[%clk 0:02:35]} 21. Nce4 {[%clk 0:02:27]}  f5 {[%clk 0:02:34]} 22. Ng3 {[%clk 0:02:27]}  g6 {[%clk 0:02:32]} 23. Bc4 {[%clk 0:02:21]}  Nc5 {[%clk 0:02:27]} 24. Bd4 {[%clk 0:02:04]}  Kd7 {[%clk 0:01:53]} 25. f3 {[%clk 0:01:51]}  Na5 {[%clk 0:01:49]} 26. Bxc5 {[%clk 0:01:41]}  Bxc5 {[%clk 0:01:49]} 27. Ke2 {[%clk 0:01:37]}  Ke7 {[%clk 0:01:36]} 28. Kd3 {[%clk 0:01:26]}  h5 {[%clk 0:01:33]} 29. h4 {[%clk 0:01:20]}  Nc6 {[%clk 0:01:23]} 30. f4 {[%clk 0:01:14]}  Na5 {[%clk 0:01:19]} 31. Ne2 {[%clk 0:00:40]}  Nxc4 {[%clk 0:01:10]} 32. Kxc4 {[%clk 0:00:31]}  Bxe3 {[%clk 0:01:08]} 33. Nf1 {[%clk 0:00:29]}  Bf2 {[%clk 0:01:05]} 34. g3 {[%clk 0:00:20]}  Bf3 {[%clk 0:01:05]} 35. Nd4 {[%clk 0:00:19]}  Bd5+ {[%clk 0:01:05]} 36. Kd3 {[%clk 0:00:17]}  Bxd4 {[%clk 0:01:05]} 37. Kxd4 {[%clk 0:00:17]}  Bxb3 {[%clk 0:01:05]} 38. a5 {[%clk 0:00:18]}  Kd6 {[%clk 0:01:03]} 39. Nd2 {[%clk 0:00:15]}  Bd5 {[%clk 0:01:03]} 40. Nb1 {[%clk 0:00:13]}  Kc6 {[%clk 0:01:02]} 41. Nd2 {[%clk 0:00:05]}  Kb5 {[%clk 0:01:02]} 42. Ke5 {[%clk 0:00:02]}  Kxa5 {[%clk 0:01:02]} 43. Kf6 {[%clk 0:00:02]}  Kb5 {[%clk 0:00:48]} 44. Kxg6 {[%clk 0:00:03]}  a5 {[%clk 0:00:49]} 45. Kxh5 {[%clk 0:00:03]}  a4 {[%clk 0:00:49]} 46. Kg6 {[%clk 0:00:01]}  a3 {[%clk 0:00:50]} 47. h5 {[%clk 0:00:01]}  a2 {[%clk 0:00:50]} 0-1


[Site "https://www.chess.com"]

[Event "Titled Tuesday Blitz March 08 Early 2022"]
[White "Petrovic, Aleksa"]
[Black "Zaichenko, Daria"]
[WhiteFideId "967629"]
[BlackFideId "4197453"]
[WhiteElo "2245"]
[BlackElo "2039"]
[Result "0-1"]
[Round "02"]
[TimeControl "180+1"]
[Date "2022.03.09"]
[WhiteClock "0:00:07"]
[BlackClock "0:00:06"]

1. d4 {[%clk 0:03:00]}  d5 {[%clk 0:02:59]} 2. c4 {[%clk 0:02:59]}  e6 {[%clk 0:02:59]} 3. Nf3 {[%clk 0:02:56]}  Nf6 {[%clk 0:02:57]} 4. g3 {[%clk 0:02:53]}  Be7 {[%clk 0:02:57]} 5. Bg2 {[%clk 0:02:53]}  O-O {[%clk 0:02:57]} 6. O-O {[%clk 0:02:53]}  dxc4 {[%clk 0:02:56]} 7. Qc2 {[%clk 0:02:52]}  a6 {[%clk 0:02:53]} 8. a4 {[%clk 0:02:49]}  Bd7 {[%clk 0:02:45]} 9. Qxc4 {[%clk 0:02:47]}  Bc6 {[%clk 0:02:45]} 10. Nc3 {[%clk 0:02:45]}  Nbd7 {[%clk 0:02:44]} 11. Bg5 {[%clk 0:02:40]}  Nb6 {[%clk 0:02:39]} 12. Qd3 {[%clk 0:02:36]}  Nbd5 {[%clk 0:02:37]} 13. Bxf6 {[%clk 0:02:31]}  Bxf6 {[%clk 0:02:35]} 14. e3 {[%clk 0:02:21]}  Re8 {[%clk 0:02:29]} 15. Rfd1 {[%clk 0:02:02]}  Qe7 {[%clk 0:02:25]} 16. e4 {[%clk 0:01:31]}  Nb4 {[%clk 0:02:13]} 17. Qc4 {[%clk 0:01:20]}  a5 {[%clk 0:02:13]} 18. h4 {[%clk 0:01:12]}  g6 {[%clk 0:02:09]} 19. e5 {[%clk 0:01:09]}  Bg7 {[%clk 0:02:08]} 20. Qe2 {[%clk 0:01:08]}  Rad8 {[%clk 0:02:01]} 21. Rd2 {[%clk 0:01:05]}  Bh6 {[%clk 0:01:56]} 22. Re1 {[%clk 0:00:48]}  Bxd2 {[%clk 0:01:53]} 23. Nxd2 {[%clk 0:00:44]}  Bxg2 {[%clk 0:01:50]} 24. Kxg2 {[%clk 0:00:45]}  Nc2 {[%clk 0:01:47]} 25. Nde4 {[%clk 0:00:38]}  Nxe1+ {[%clk 0:01:34]} 26. Qxe1 {[%clk 0:00:39]}  Rxd4 {[%clk 0:01:20]} 27. Qe3 {[%clk 0:00:38]}  Rxe4 {[%clk 0:01:11]} 28. Nxe4 {[%clk 0:00:37]}  Kg7 {[%clk 0:01:07]} 29. h5 {[%clk 0:00:36]}  Rd8 {[%clk 0:00:56]} 30. Nf6 {[%clk 0:00:19]}  b6 {[%clk 0:00:45]} 31. hxg6 {[%clk 0:00:19]}  fxg6 {[%clk 0:00:38]} 32. Qg5 {[%clk 0:00:19]}  Kh8 {[%clk 0:00:30]} 33. Qh6 {[%clk 0:00:17]}  Qg7 {[%clk 0:00:28]} 34. Qh3 {[%clk 0:00:14]}  Qe7 {[%clk 0:00:24]} 35. Qh4 {[%clk 0:00:14]}  c5 {[%clk 0:00:16]} 36. Qc4 {[%clk 0:00:14]}  Qb7+ {[%clk 0:00:11]} 37. Kh2 {[%clk 0:00:09]}  Rd1 {[%clk 0:00:10]} 38. g4 {[%clk 0:00:06]}  Qh1+ {[%clk 0:00:08]} 39. Kg3 {[%clk 0:00:06]}  Qg1+ {[%clk 0:00:06]} 40. Kf3 {[%clk 0:00:05]}  Qh1+ {[%clk 0:00:05]} 41. Ke3 {[%clk 0:00:04]}  Re1+ {[%clk 0:00:04]} 42. Kd2 {[%clk 0:00:04]}  Rd1+ {[%clk 0:00:05]} 43. Ke3 {[%clk 0:00:04]}  Qh3+ {[%clk 0:00:03]} 44. f3 {[%clk 0:00:04]}  Re1+ {[%clk 0:00:02]} 45. Kd2 {[%clk 0:00:03]}  Qf1 {[%clk 0:00:02]} 46. Qxf1 {[%clk 0:00:03]}  Rxf1 {[%clk 0:00:02]} 47. Ne4 {[%clk 0:00:02]}  Rxf3 {[%clk 0:00:02]} 48. Ng5 {[%clk 0:00:02]}  Rf4 {[%clk 0:00:02]} 49. Nxe6 {[%clk 0:00:02]}  Re4 {[%clk 0:00:03]} 50. Kd3 {[%clk 0:00:01]}  Rxe5 {[%clk 0:00:03]} 51. Nd8 {[%clk 0:00:02]}  Rd5+ {[%clk 0:00:03]} 52. Kc4 {[%clk 0:00:02]}  Rxd8 {[%clk 0:00:02]} 53. Kb5 {[%clk 0:00:02]}  Rd6 {[%clk 0:00:02]} 54. b3 {[%clk 0:00:02]}  h5 {[%clk 0:00:03]} 55. g5 {[%clk 0:00:02]}  h4 {[%clk 0:00:03]} 56. b4 {[%clk 0:00:03]}  h3 {[%clk 0:00:03]} 57. bxa5 {[%clk 0:00:04]}  bxa5 {[%clk 0:00:03]} 58. Kxc5 {[%clk 0:00:04]}  Re6 {[%clk 0:00:03]} 59. Kd5 {[%clk 0:00:04]}  Ra6 {[%clk 0:00:03]} 60. Kc5 {[%clk 0:00:05]}  h2 {[%clk 0:00:04]} 61. Kb5 {[%clk 0:00:06]}  Re6 {[%clk 0:00:04]} 62. Kxa5 {[%clk 0:00:06]}  h1=Q {[%clk 0:00:05]} 63. Kb5 {[%clk 0:00:07]}  Qf3 {[%clk 0:00:06]} 0-1


[Site "https://www.chess.com"]

[Event "Titled Tuesday Blitz March 08 Early 2022"]
[White "Roebers, Jan"]
[Black "Popadic, Dragan"]
[WhiteFideId "1007815"]
[BlackFideId "913650"]
[WhiteElo "2118"]
[BlackElo "2222"]
[Result "1/2-1/2"]
[Round "02"]
[TimeControl "180+1"]
[Date "2022.03.09"]
[WhiteClock "0:00:33"]
[BlackClock "0:00:33"]

1. e4 {[%clk 0:03:00]}  c5 {[%clk 0:02:58]} 2. d4 {[%clk 0:03:01]}  cxd4 {[%clk 0:02:58]} 3. c3 {[%clk 0:03:01]}  d3 {[%clk 0:02:58]} 4. c4 {[%clk 0:03:00]}  Nc6 {[%clk 0:02:57]} 5. Nc3 {[%clk 0:03:00]}  d6 {[%clk 0:02:57]} 6. Bxd3 {[%clk 0:03:00]}  Nf6 {[%clk 0:02:57]} 7. Nge2 {[%clk 0:03:00]}  g6 {[%clk 0:02:58]} 8. O-O {[%clk 0:03:00]}  Bg7 {[%clk 0:02:58]} 9. b3 {[%clk 0:03:00]}  O-O {[%clk 0:02:57]} 10. Bb2 {[%clk 0:03:00]}  a6 {[%clk 0:02:58]} 11. Qd2 {[%clk 0:03:00]}  Bd7 {[%clk 0:02:52]} 12. Nd5 {[%clk 0:02:59]}  Nxd5 {[%clk 0:02:47]} 13. Bxg7 {[%clk 0:02:55]}  Kxg7 {[%clk 0:02:47]} 14. exd5 {[%clk 0:02:55]}  Ne5 {[%clk 0:02:45]} 15. f4 {[%clk 0:02:54]}  Nxd3 {[%clk 0:02:43]} 16. Qxd3 {[%clk 0:02:53]}  b5 {[%clk 0:02:44]} 17. Nd4 {[%clk 0:02:50]}  Qb6 {[%clk 0:02:30]} 18. Kh1 {[%clk 0:02:48]}  Kg8 {[%clk 0:02:30]} 19. f5 {[%clk 0:02:44]}  Rac8 {[%clk 0:02:28]} 20. Rae1 {[%clk 0:02:43]}  Rce8 {[%clk 0:02:26]} 21. cxb5 {[%clk 0:02:32]}  Bxb5 {[%clk 0:02:19]} 22. Nxb5 {[%clk 0:02:30]}  axb5 {[%clk 0:02:19]} 23. fxg6 {[%clk 0:02:24]}  hxg6 {[%clk 0:02:19]} 24. a4 {[%clk 0:02:23]}  bxa4 {[%clk 0:02:18]} 25. bxa4 {[%clk 0:02:23]}  Qa5 {[%clk 0:02:18]} 26. Re4 {[%clk 0:02:22]}  Ra8 {[%clk 0:02:08]} 27. Rh4 {[%clk 0:02:22]}  Kg7 {[%clk 0:01:55]} 28. Qd4+ {[%clk 0:02:07]}  f6 {[%clk 0:01:54]} 29. Re4 {[%clk 0:02:00]}  Ra7 {[%clk 0:01:52]} 30. Rfe1 {[%clk 0:01:58]}  Rf7 {[%clk 0:01:52]} 31. h3 {[%clk 0:01:52]}  Rb7 {[%clk 0:01:49]} 32. Qd3 {[%clk 0:01:44]}  Rc7 {[%clk 0:01:43]} 33. Kh2 {[%clk 0:01:34]}  Rc5 {[%clk 0:01:25]} 34. Rxe7 {[%clk 0:01:32]}  Rxd5 {[%clk 0:01:25]} 35. Qc4 {[%clk 0:01:25]}  Qc5 {[%clk 0:01:14]} 36. Rxf7+ {[%clk 0:01:12]}  Kxf7 {[%clk 0:01:13]} 37. Qb3 {[%clk 0:01:10]}  Kg7 {[%clk 0:00:59]} 38. Re7+ {[%clk 0:01:06]}  Kh6 {[%clk 0:00:58]} 39. Qg3 {[%clk 0:00:56]}  Qd4 {[%clk 0:00:50]} 40. Qe3+ {[%clk 0:00:41]}  Qxe3 {[%clk 0:00:46]} 41. Rxe3 {[%clk 0:00:40]}  Kg5 {[%clk 0:00:43]} 42. Ra3 {[%clk 0:00:40]}  Ra5 {[%clk 0:00:43]} 43. Kg3 {[%clk 0:00:40]}  Kf5 {[%clk 0:00:43]} 44. Kf3 {[%clk 0:00:40]}  Ke5 {[%clk 0:00:43]} 45. Ke3 {[%clk 0:00:40]}  d5 {[%clk 0:00:43]} 46. Kd3 {[%clk 0:00:36]}  d4 {[%clk 0:00:39]} 47. Ra1 {[%clk 0:00:35]}  Kd5 {[%clk 0:00:37]} 48. Ra2 {[%clk 0:00:34]}  Ke5 {[%clk 0:00:34]} 49. Ra1 {[%clk 0:00:34]}  Kd5 {[%clk 0:00:34]} 50. Ra2 {[%clk 0:00:34]}  f5 {[%clk 0:00:34]} 51. Ra1 {[%clk 0:00:33]}  Ke5 {[%clk 0:00:34]} 52. Ra2 {[%clk 0:00:33]}  Kd5 {[%clk 0:00:34]} 53. Ra1 {[%clk 0:00:33]}  Ke5 {[%clk 0:00:33]} 54. Ra2 {[%clk 0:00:33]}  Kd5 {[%clk 0:00:33]} 1/2-1/2


[Site "https://www.chess.com"]

[Event "Titled Tuesday Blitz March 08 Early 2022"]
[White "Rudzinska, Michalina"]
[Black "Marson, Juan Miguel"]
[WhiteFideId "1172883"]
[BlackFideId "106585"]
[WhiteElo "1904"]
[BlackElo "2053"]
[Result "1-0"]
[Round "02"]
[TimeControl "180+1"]
[Date "2022.03.09"]
[WhiteClock "0:01:55"]
[BlackClock "0:00:58"]

1. e4 {[%clk 0:03:00]}  e5 {[%clk 0:02:57]} 2. Nf3 {[%clk 0:02:59]}  Nc6 {[%clk 0:02:57]} 3. Nc3 {[%clk 0:02:59]}  Nf6 {[%clk 0:02:54]} 4. a4 {[%clk 0:02:59]}  Bc5 {[%clk 0:02:51]} 5. Nxe5 {[%clk 0:02:59]}  Nxe5 {[%clk 0:02:50]} 6. d4 {[%clk 0:02:59]}  Bd6 {[%clk 0:02:50]} 7. dxe5 {[%clk 0:02:59]}  Bxe5 {[%clk 0:02:51]} 8. Nb5 {[%clk 0:02:59]}  a6 {[%clk 0:02:41]} 9. f4 {[%clk 0:02:59]}  axb5 {[%clk 0:02:40]} 10. fxe5 {[%clk 0:02:59]}  Nxe4 {[%clk 0:02:40]} 11. Qg4 {[%clk 0:02:58]}  d5 {[%clk 0:02:23]} 12. Qxg7 {[%clk 0:02:57]}  Qh4+ {[%clk 0:01:54]} 13. g3 {[%clk 0:02:56]}  Nxg3 {[%clk 0:01:54]} 14. Qxh8+ {[%clk 0:02:32]}  Kd7 {[%clk 0:01:50]} 15. e6+ {[%clk 0:02:31]}  Kxe6 {[%clk 0:01:20]} 16. Qe8+ {[%clk 0:02:04]}  Kd6 {[%clk 0:01:03]} 17. hxg3 {[%clk 0:02:02]}  Qxh1 {[%clk 0:00:57]} 18. Bf4+ {[%clk 0:02:00]}  Kc5 {[%clk 0:00:57]} 19. Qxb5+ {[%clk 0:01:59]}  Kd4 {[%clk 0:00:58]} 20. Qb4# {[%clk 0:01:55]} 1-0


[Site "https://www.chess.com"]

[Event "Titled Tuesday Blitz March 08 Early 2022"]
[White "Sahil, Tickoo"]
[Black "Cori T., Deysi"]
[WhiteFideId "5019710"]
[BlackFideId "3801934"]
[WhiteElo "2099"]
[BlackElo "2341"]
[Result "1/2-1/2"]
[Round "02"]
[TimeControl "180+1"]
[Date "2022.03.09"]
[WhiteClock "0:00:06"]
[BlackClock "0:01:11"]

1. d4 {[%clk 0:03:00]}  Nf6 {[%clk 0:02:59]} 2. c4 {[%clk 0:03:00]}  g6 {[%clk 0:02:59]} 3. Nc3 {[%clk 0:02:57]}  Bg7 {[%clk 0:02:59]} 4. e4 {[%clk 0:02:57]}  d6 {[%clk 0:02:59]} 5. Nf3 {[%clk 0:02:55]}  O-O {[%clk 0:02:59]} 6. Be2 {[%clk 0:02:53]}  Bg4 {[%clk 0:02:59]} 7. Be3 {[%clk 0:02:52]}  Nfd7 {[%clk 0:02:59]} 8. Rc1 {[%clk 0:02:50]}  c5 {[%clk 0:02:58]} 9. d5 {[%clk 0:02:48]}  a6 {[%clk 0:02:58]} 10. a4 {[%clk 0:02:47]}  b5 {[%clk 0:02:56]} 11. axb5 {[%clk 0:02:41]}  axb5 {[%clk 0:02:57]} 12. Nxb5 {[%clk 0:02:41]}  Bxb2 {[%clk 0:02:55]} 13. Rb1 {[%clk 0:02:41]}  Bg7 {[%clk 0:02:54]} 14. O-O {[%clk 0:02:37]}  Na6 {[%clk 0:02:53]} 15. Nd2 {[%clk 0:02:33]}  Bxe2 {[%clk 0:02:53]} 16. Qxe2 {[%clk 0:02:33]}  Nb4 {[%clk 0:02:53]} 17. Rfc1 {[%clk 0:02:27]}  Ra2 {[%clk 0:02:53]} 18. Qf1 {[%clk 0:02:22]}  Ne5 {[%clk 0:02:49]} 19. h3 {[%clk 0:02:10]}  Qd7 {[%clk 0:02:48]} 20. Nc3 {[%clk 0:02:06]}  Ra3 {[%clk 0:02:46]} 21. Nb5 {[%clk 0:02:04]}  Ra2 {[%clk 0:02:40]} 22. Nc3 {[%clk 0:02:03]}  Ra6 {[%clk 0:02:39]} 23. Nf3 {[%clk 0:01:49]}  Nxf3+ {[%clk 0:02:25]} 24. gxf3 {[%clk 0:01:50]}  f5 {[%clk 0:02:25]} 25. Qg2 {[%clk 0:01:36]}  Nd3 {[%clk 0:02:21]} 26. Rc2 {[%clk 0:01:33]}  fxe4 {[%clk 0:02:19]} 27. Nxe4 {[%clk 0:01:27]}  Ne5 {[%clk 0:02:18]} 28. f4 {[%clk 0:01:20]}  Nf7 {[%clk 0:02:18]} 29. Ng5 {[%clk 0:01:19]}  Nxg5 {[%clk 0:02:17]} 30. fxg5 {[%clk 0:01:16]}  Qf5 {[%clk 0:02:17]} 31. Rcc1 {[%clk 0:01:11]}  Ra4 {[%clk 0:02:09]} 32. Qg4 {[%clk 0:01:03]}  Be5 {[%clk 0:02:07]} 33. Qxf5 {[%clk 0:01:00]}  Rxf5 {[%clk 0:02:08]} 34. Rb7 {[%clk 0:00:56]}  Kf7 {[%clk 0:02:07]} 35. Kg2 {[%clk 0:00:47]}  Bf4 {[%clk 0:02:07]} 36. Bxf4 {[%clk 0:00:36]}  Rxf4 {[%clk 0:02:07]} 37. Re1 {[%clk 0:00:36]}  Ra2 {[%clk 0:02:07]} 38. Rbxe7+ {[%clk 0:00:19]}  Kg8 {[%clk 0:02:07]} 39. Re8+ {[%clk 0:00:19]}  Kg7 {[%clk 0:02:04]} 40. R1e7+ {[%clk 0:00:18]}  Rf7 {[%clk 0:02:03]} 41. Rxf7+ {[%clk 0:00:18]}  Kxf7 {[%clk 0:02:04]} 42. Re6 {[%clk 0:00:18]}  Rc2 {[%clk 0:02:02]} 43. Rxd6 {[%clk 0:00:19]}  Rxc4 {[%clk 0:02:03]} 44. Rd7+ {[%clk 0:00:18]}  Ke8 {[%clk 0:02:01]} 45. Rxh7 {[%clk 0:00:18]}  Rd4 {[%clk 0:02:01]} 46. Rg7 {[%clk 0:00:17]}  Rxd5 {[%clk 0:01:59]} 47. h4 {[%clk 0:00:17]}  Rd6 {[%clk 0:01:56]} 48. Rc7 {[%clk 0:00:17]}  Rd4 {[%clk 0:01:56]} 49. Rxc5 {[%clk 0:00:13]}  Rxh4 {[%clk 0:01:55]} 50. Kg3 {[%clk 0:00:11]}  Rh1 {[%clk 0:01:55]} 51. Rc7 {[%clk 0:00:10]}  Kf8 {[%clk 0:01:47]} 52. f4 {[%clk 0:00:08]}  Rg1+ {[%clk 0:01:45]} 53. Kf3 {[%clk 0:00:08]}  Rf1+ {[%clk 0:01:44]} 54. Ke4 {[%clk 0:00:08]}  Re1+ {[%clk 0:01:45]} 55. Kd5 {[%clk 0:00:08]}  Re3 {[%clk 0:01:44]} 56. Kd4 {[%clk 0:00:07]}  Re1 {[%clk 0:01:44]} 57. Rc6 {[%clk 0:00:07]}  Kf7 {[%clk 0:01:43]} 58. Rc7+ {[%clk 0:00:07]}  Ke6 {[%clk 0:01:42]} 59. Rc6+ {[%clk 0:00:07]}  Kf7 {[%clk 0:01:40]} 60. Rf6+ {[%clk 0:00:07]}  Kg7 {[%clk 0:01:40]} 61. Kd5 {[%clk 0:00:08]}  Re3 {[%clk 0:01:28]} 62. Kd6 {[%clk 0:00:08]}  Re4 {[%clk 0:01:25]} 63. Kd7 {[%clk 0:00:07]}  Rd4+ {[%clk 0:01:20]} 64. Ke6 {[%clk 0:00:07]}  Re4+ {[%clk 0:01:20]} 65. Kd5 {[%clk 0:00:06]}  Ra4 {[%clk 0:01:20]} 66. Ke5 {[%clk 0:00:06]}  Ra5+ {[%clk 0:01:19]} 67. Ke4 {[%clk 0:00:06]}  Ra4+ {[%clk 0:01:20]} 68. Kf3 {[%clk 0:00:06]}  Ra3+ {[%clk 0:01:20]} 69. Kg4 {[%clk 0:00:06]}  Ra1 {[%clk 0:01:20]} 70. Rd6 {[%clk 0:00:06]}  Rg1+ {[%clk 0:01:17]} 71. Kf3 {[%clk 0:00:06]}  Rf1+ {[%clk 0:01:18]} 72. Ke4 {[%clk 0:00:06]}  Re1+ {[%clk 0:01:18]} 73. Kd5 {[%clk 0:00:06]}  Rf1 {[%clk 0:01:13]} 74. Ke5 {[%clk 0:00:06]}  Re1+ {[%clk 0:01:11]} 75. Kd5 {[%clk 0:00:06]}  Rf1 {[%clk 0:01:12]} 76. Ke5 {[%clk 0:00:06]}  Re1+ {[%clk 0:01:11]} 77. Kd5 {[%clk 0:00:06]} 1/2-1/2


[Site "https://www.chess.com"]

[Event "Titled Tuesday Blitz March 08 Early 2022"]
[White "Sanal, Vahap"]
[Black "Artemenko, Oleg"]
[WhiteFideId "6300545"]
[BlackFideId "14201798"]
[WhiteElo "2603"]
[BlackElo "2287"]
[Result "1-0"]
[Round "02"]
[TimeControl "180+1"]
[Date "2022.03.08"]
[WhiteClock "0:00:06"]
[BlackClock "0:00:00"]

1. e4 {[%clk 0:03:00]}  e6 {[%clk 0:02:58]} 2. d4 {[%clk 0:03:00]}  d5 {[%clk 0:02:58]} 3. Nd2 {[%clk 0:03:00]}  c5 {[%clk 0:02:57]} 4. exd5 {[%clk 0:03:00]}  Qxd5 {[%clk 0:02:57]} 5. Ngf3 {[%clk 0:02:55]}  cxd4 {[%clk 0:02:57]} 6. Bc4 {[%clk 0:02:55]}  Qd7 {[%clk 0:02:57]} 7. O-O {[%clk 0:02:54]}  Nc6 {[%clk 0:02:55]} 8. Qe2 {[%clk 0:02:55]}  Nf6 {[%clk 0:02:55]} 9. Nb3 {[%clk 0:02:54]}  Bd6 {[%clk 0:02:54]} 10. Rd1 {[%clk 0:02:54]}  O-O {[%clk 0:02:54]} 11. Nbxd4 {[%clk 0:02:54]}  Nxd4 {[%clk 0:02:54]} 12. Rxd4 {[%clk 0:02:55]}  Qc7 {[%clk 0:02:55]} 13. Bg5 {[%clk 0:02:54]}  e5 {[%clk 0:02:53]} 14. Rh4 {[%clk 0:02:42]}  Bf5 {[%clk 0:02:51]} 15. Bxf6 {[%clk 0:02:37]}  gxf6 {[%clk 0:02:50]} 16. Bd3 {[%clk 0:02:33]}  Bg6 {[%clk 0:02:49]} 17. Rc4 {[%clk 0:02:28]}  Qb6 {[%clk 0:02:46]} 18. b3 {[%clk 0:02:27]}  Rad8 {[%clk 0:02:45]} 19. Nh4 {[%clk 0:02:24]}  Rfe8 {[%clk 0:02:17]} 20. Be4 {[%clk 0:02:16]}  Bc5 {[%clk 0:01:59]} 21. Rf1 {[%clk 0:02:15]}  Rd4 {[%clk 0:01:44]} 22. Nf5 {[%clk 0:02:07]}  Rxc4 {[%clk 0:01:41]} 23. Qxc4 {[%clk 0:02:07]}  Rd8 {[%clk 0:01:32]} 24. Qe2 {[%clk 0:01:44]}  Qb4 {[%clk 0:01:24]} 25. Qf3 {[%clk 0:01:28]}  Qd2 {[%clk 0:01:17]} 26. g3 {[%clk 0:01:19]}  b5 {[%clk 0:01:11]} 27. h4 {[%clk 0:01:17]}  h5 {[%clk 0:00:27]} 28. Kg2 {[%clk 0:01:07]}  Kh7 {[%clk 0:00:22]} 29. Bd3 {[%clk 0:01:06]}  b4 {[%clk 0:00:17]} 30. Rd1 {[%clk 0:01:02]}  Qc3 {[%clk 0:00:17]} 31. Rh1 {[%clk 0:00:58]}  Bb6 {[%clk 0:00:15]} 32. Rf1 {[%clk 0:00:39]}  Qd2 {[%clk 0:00:13]} 33. Ne7 {[%clk 0:00:35]}  Kg7 {[%clk 0:00:08]} 34. Nxg6 {[%clk 0:00:30]}  fxg6 {[%clk 0:00:09]} 35. Qe4 {[%clk 0:00:25]}  f5 {[%clk 0:00:05]} 36. Qxe5+ {[%clk 0:00:25]}  Kh6 {[%clk 0:00:05]} 37. Qf6 {[%clk 0:00:16]}  Kh7 {[%clk 0:00:06]} 38. Qf7+ {[%clk 0:00:15]}  Kh6 {[%clk 0:00:06]} 39. Qe6 {[%clk 0:00:15]}  Kh7 {[%clk 0:00:05]} 40. Qe7+ {[%clk 0:00:08]}  Kh6 {[%clk 0:00:05]} 41. Qe1 {[%clk 0:00:07]}  Qxe1 {[%clk 0:00:03]} 42. Rxe1 {[%clk 0:00:08]}  Kg7 {[%clk 0:00:03]} 43. Re6 {[%clk 0:00:08]}  Kf7 {[%clk 0:00:03]} 44. Bc4 {[%clk 0:00:07]}  Kg7 {[%clk 0:00:03]} 45. Re2 {[%clk 0:00:06]}  Kf6 {[%clk 0:00:03]} 46. Re6+ {[%clk 0:00:06]}  Kg7 {[%clk 0:00:03]} 47. Bd3 {[%clk 0:00:06]}  Kf7 {[%clk 0:00:04]} 48. Rc6 {[%clk 0:00:06]}  Rd7 {[%clk 0:00:00]} 49. Bc4+ {[%clk 0:00:06]} 1-0


[Site "https://www.chess.com"]